bitfinex-derivatives/quotes_SOLF0:USTF0_20250603
["timestamp","ask_amount","ask_price","bid_price","bid_amount"]
[1748993195202,0.04758388,155.43,155.39,0.04130454]
[1748993195700,6.47698388,155.43,155.4,6.4302]
[1748993196402,0.04758388,155.43,155.42,6.4297]
[1748993196994,0.04758388,155.43,155.4,7.42664254]
[1748993196995,0.04758388,155.43,155.41,6.4301]
[1748993197508,6.47718388,155.43,155.4,7.42664254]
[1748993197711,6.47718388,155.43,155.4,13.85694254]
[1748993200504,6.47718388,155.43,155.41,6.43]
[1748993201712,0.04758388,155.43,155.41,6.43]
[1748993207124,0.04758388,155.43,155.42,6.4297]
[1748993207318,0.04758388,155.43,155.42,13.85634254]
[1748993207524,6.4277,155.47,155.45,6.4284]
[1748993208326,6.4274,155.48,155.46,6.4279]
[1748993208514,6.4274,155.48,155.45,0.04450481]
[1748993208717,6.4274,155.48,155.45,6.47270481]
[1748993208920,6.4277,155.47,155.45,6.47270481]
[1748993210728,6.4277,155.47,155.45,0.04450481]
[1748993211324,0.046056,155.49,155.45,6.47260481]
[1748993211821,6.4274,155.48,155.45,6.47260481]
[1748993212021,0.046056,155.49,155.45,6.47260481]
[1748993212224,0.046056,155.49,155.45,0.04450481]
[1748993212425,6.4279,155.47,155.45,0.04450481]
[1748993212829,6.4276,155.48,155.45,6.47300481]
[1748993213129,0.046056,155.49,155.45,6.47300481]
[1748993213425,6.4279,155.47,155.45,0.04450481]
[1748993215325,6.4281,155.46,155.45,0.04450481]
[1748993217823,6.4278,155.47,155.45,0.04450481]
[1748993218322,7.47269854,155.49,155.45,0.04450481]
[1748993219126,6.4281,155.46,155.45,0.04450481]
[1748993222635,6.4298,155.42,155.4,32.4]
[1748993223026,9.66544254,155.47,155.4,32.4]
[1748993223336,9.66544254,155.47,155.4,38.38739343]
[1748993223533,9.66544254,155.47,155.4,32.4]
[1748993223833,0.04119408,155.45,155.42,0.04063954]
[1748993224236,6.4293,155.43,155.42,0.04063954]
[1748993225641,13.85594254,155.43,155.42,0.04063954]
[1748993227334,13.85594254,155.43,155.42,3.954e-05]
[1748993227835,6.429,155.44,155.42,3.954e-05]
[1748993228230,0.04119408,155.45,155.42,3.954e-05]
[1748993228640,6.46979408,155.45,155.42,6.42953954]
[1748993228943,6.46979408,155.45,155.42,3.954e-05]
[1748993228944,0.04119408,155.45,155.42,3.954e-05]
[1748993229338,0.04119408,155.45,155.44,6.4289]
[1748993236841,0.04119408,155.45,155.44,12.42444091]
[1748993238143,0.04119408,155.45,155.44,6.4289]
[1748993238642,6.46979408,155.45,155.43,15.37184725]
[1748993239040,6.46979408,155.45,155.44,6.00269146]
[1748993240541,6.46979408,155.45,155.44,6.00374428]
[1748993242447,0.04119408,155.45,155.44,6.00374428]
[1748993243342,0.04119408,155.45,155.44,19.85928682]
[1748993243545,226.10409474,155.52,155.44,15.37184725]
[1748993243847,226.10409474,155.52,155.48,12.42946444]
[1748993244143,6.4263,155.51,155.48,12.42946444]
[1748993244547,6.47534026,155.51,155.48,12.47896427]
[1748993244937,6.4264,155.5,155.48,12.47896427]
[1748993245141,6.4264,155.5,155.48,6.05196427]
[1748993246044,6.4264,155.5,155.49,6.00246444]
[1748993246247,6.47514026,155.51,155.49,5.99849289]
[1748993246642,0.04904026,155.51,155.49,5.99849289]
[1748993247643,0.04904026,155.51,155.48,6.04799272]
[1748993247644,6.4267,155.5,155.48,6.04799272]
[1748993248651,6.4267,155.5,155.48,6.04434145]
[1748993249741,0.04904026,155.51,155.49,5.99484162]
[1748993250146,6.4266,155.5,155.48,12.47154145]
[1748993250347,6.4266,155.5,155.48,12.46924593]
[1748993250548,6.4266,155.5,155.49,5.9925461]
[1748993250749,6.47514026,155.51,155.49,5.99106383]
[1748993251550,6.47514026,155.51,155.48,12.46776366]
[1748993252051,6.47514026,155.51,155.49,5.99106383]
[1748993252949,6.47514026,155.51,155.49,12.41786383]
[1748993253153,6.47514026,155.51,155.49,5.99106383]
[1748993253653,6.47514026,155.51,155.48,12.46756366]
[1748993254252,6.47514026,155.51,155.48,12.46436393]
[1748993255248,6.4265,155.5,155.48,6.03736393]
[1748993256150,6.4268,155.49,155.48,6.03736393]
[1748993256455,4.56425801,155.49,155.48,6.03736393]
[1748993256648,6.4267,155.5,155.48,0.04949983]
[1748993256843,4.56481945,155.49,155.48,6.47669983]
[1748993257048,0.04904026,155.51,155.48,12.46456393]
[1748993258056,6.4264,155.5,155.48,12.46456393]
[1748993258249,6.4264,155.5,155.48,12.46078276]
[1748993258852,4.56437478,155.49,155.48,12.46078276]
[1748993259048,6.4264,155.5,155.48,12.46078276]
[1748993259251,4.56445467,155.49,155.48,12.46078276]
[1748993259450,6.47524026,155.51,155.48,12.46078276]
[1748993259947,4.56446412,155.5,155.48,12.46078276]
[1748993260142,0.04904026,155.51,155.49,39.94664254]
[1748993260344,0.04904026,155.51,155.49,45.93072547]
[1748993260946,4.56308221,155.5,155.49,45.93072547]
[1748993261153,0.04904026,155.51,155.5,6.4264]
[1748993261350,0.04904026,155.51,155.49,45.93072547]
[1748993261552,4.56318317,155.5,155.49,39.94664254]
[1748993261752,0.04904026,155.51,155.49,39.94664254]
[1748993262255,0.04904026,155.51,155.49,46.37314254]
[1748993262847,4.56240222,155.5,155.49,46.37314254]
[1748993263157,0.04904026,155.51,155.49,46.37314254]
[1748993263555,0.04904026,155.51,155.49,32.52]
[1748993263761,0.04904026,155.51,155.48,0.04949983]
[1748993263954,4.56040368,155.5,155.48,0.04949983]
[1748993264150,0.04904026,155.51,155.48,0.04949983]
[1748993264461,9.12132066,155.5,155.48,0.04949983]
[1748993264652,4.5606603,155.5,155.48,0.04949983]
[1748993265049,10.98741827,155.49,155.48,0.04949983]
[1748993265253,6.4268,155.49,155.48,0.04949983]
[1748993265657,4.5606603,155.5,155.48,0.04949983]
[1748993266354,4.5606603,155.5,155.49,6.4268]
[1748993267156,4.5606603,155.5,155.48,6.47649983]
[1748993267550,10.9872603,155.5,155.48,0.04949983]
[1748993268658,6.4268,155.49,155.48,0.04949983]
[1748993269561,6.4281,155.46,155.44,6.4287]
[1748993269757,11.98730284,155.5,155.44,5.98079442]
[1748993269959,6.4274,155.48,155.45,6.4284]
[1748993270156,11.98730284,155.5,155.45,7.42664254]
[1748993270157,4.5606603,155.5,155.45,7.42664254]
[1748993270352,0.04123174,155.49,155.46,0.0457875]
[1748993270765,0.04123174,155.49,155.47,6.4274]
[1748993271359,6.46813174,155.49,155.46,12.45841697]
[1748993271561,0.04123174,155.49,155.46,6.03051697]
[1748993271960,6.4272,155.48,155.46,0.0457875]
[1748993272158,0.04123174,155.49,155.46,0.0457875]
[1748993272359,0.04123174,155.49,155.46,6.03051697]
[1748993272659,0.04123174,155.49,155.48,6.4272]
[1748993274064,0.04123174,155.49,155.48,12.42148988]
[1748993277070,6.4258,155.52,155.5,120.39810796]
[1748993277467,2.1056,155.54,155.5,120.39810796]
[1748993278367,6.4258,155.52,155.5,120.44592417]
[1748993278574,2.1503303,155.54,155.5,120.44592417]
[1748993279167,6.426,155.51,155.5,120.44592417]
[1748993279471,13.85264254,155.51,155.5,120.44592417]
[1748993282668,6.426,155.51,155.5,120.44592417]
[1748993284279,6.4277,155.47,155.46,8.00328592]
[1748993284468,7.42664254,155.5,155.46,6.00450092]
[1748993284671,7.42664254,155.5,155.45,6.00450092]
[1748993285272,7.42664254,155.5,155.46,0.04353678]
[1748993285579,0.04130542,155.49,155.46,0.04353678]
[1748993285982,6.4276,155.47,155.46,0.04353678]
[1748993286181,6.4276,155.47,155.46,6.0480377]
[1748993286486,0.04130542,155.49,155.46,6.0480377]
[1748993286679,6.4275,155.48,155.46,6.0480377]
[1748993287487,6.4275,155.48,155.47,6.00450092]
[1748993288174,6.46830542,155.49,155.47,6.00450092]
[1748993288378,0.04130542,155.49,155.47,6.0075621]
[1748993288976,0.04130542,155.49,155.46,7.47017932]
[1748993288977,0.04130542,155.49,155.48,6.0075621]
[1748993290485,6.46810542,155.49,155.48,6.0075621]
[1748993291386,6.46810542,155.49,155.47,12.4349621]
[1748993291681,6.46810542,155.49,155.46,7.47017932]
[1748993291682,0.04130542,155.49,155.48,12.4347621]
[1748993291892,0.04130542,155.49,155.48,6.4272]
[1748993292582,0.04130542,155.49,155.47,14.43068592]
[1748993293191,0.04130542,155.49,155.48,6.4272]
[1748993294584,0.04130542,155.49,155.48,46.23384254]
[1748993295586,227.6714087,155.57,155.48,47.80992846]
[1748993295587,267.47805124,155.57,155.48,47.80992846]
[1748993295793,6.4246,155.55,155.5,13.43340298]
[1748993295987,266.35881027,155.57,155.51,6.4256]
[1748993296493,6.425,155.54,155.52,0.04675169]
[1748993297382,6.4252,155.53,155.52,0.04675169]
[1748993301490,0.0461264,155.56,155.52,0.04675169]
[1748993301796,0.0461264,155.56,155.52,6.0520311]
[1748993301993,6.4244,155.55,155.52,12.4774311]
[1748993302293,6.4244,155.55,155.52,6.0520311]
[1748993302996,6.4244,155.55,155.52,12.4774311]
[1748993303893,6.4248,155.54,155.52,12.4774311]
[1748993304098,6.4248,155.54,155.52,6.47215169]
[1748993304296,6.4248,155.54,155.52,12.47510111]
[1748993304489,6.4244,155.55,155.53,12.42794942]
[1748993305094,6.4244,155.55,155.53,6.00294942]
[1748993308099,6.4244,155.55,155.53,5.99873829]
[1748993308703,6.4702264,155.56,155.53,12.42277525]
[1748993309006,0.0461264,155.56,155.53,12.42277525]
[1748993309604,6.4244,155.55,155.53,12.42277525]
[1748993309808,0.0461264,155.56,155.53,12.42277525]
[1748993310205,6.4244,155.55,155.53,12.42277525]
[1748993310606,6.4244,155.55,155.53,6.4251]
[1748993311407,6.4702264,155.56,155.53,6.4251]
[1748993311809,0.0461264,155.56,155.53,6.4251]
[1748993312115,0.0461264,155.56,155.54,6.4247]
[1748993313113,6.4702264,155.56,155.54,6.4247]
[1748993313412,0.0461264,155.56,155.55,6.4243]
[1748993313713,0.0461264,155.56,155.52,45.82826887]
[1748993314014,0.0461264,155.56,155.54,6.4245]
[1748993314311,6.4701264,155.56,155.54,6.4245]
[1748993314503,0.0461264,155.56,155.53,6.425]
[1748993315307,6.4244,155.55,155.53,6.425]
[1748993315911,6.4702264,155.56,155.54,6.4248]
[1748993316714,0.0461264,155.56,155.52,38.40004311]
[1748993316911,0.0461264,155.56,155.52,0.04675169]
[1748993317214,7.47276894,155.56,155.52,0.04675169]
[1748993319411,7.47276894,155.56,155.52,6.47225169]
[1748993319911,7.47276894,155.56,155.52,0.04675169]
[1748993320517,6.425,155.54,155.52,0.04675169]
[1748993321509,6.425,155.54,155.52,6.47225169]
[1748993325721,6.425,155.54,155.52,12.46539414]
[1748993326112,6.4244,155.55,155.53,6.4252]
[1748993326715,0.0461264,155.56,155.54,6.4248]
[1748993327319,0.0461264,155.56,155.55,6.4243]
[1748993329120,0.0461264,155.56,155.54,12.41795081]
[1748993329520,0.0461264,155.56,155.55,5.99325081]
[1748993330319,0.0461264,155.56,155.55,12.41755081]
[1748993331417,0.0461264,155.56,155.55,5.99325081]
[1748993332009,0.0461264,155.56,155.54,6.4245]
[1748993332214,0.0461264,155.56,155.55,5.99446548]
[1748993332414,6.4700264,155.56,155.55,5.99446548]
[1748993333417,6.4700264,155.56,155.54,5.99446548]
[1748993334017,6.4243,155.55,155.54,5.99446548]
[1748993334517,0.0461264,155.56,155.53,15.42992846]
[1748993334518,6.4702264,155.56,155.53,15.42992846]
[1748993334722,6.4702264,155.56,155.55,5.9973109]
[1748993335819,6.4243,155.55,155.54,5.9973109]
[1748993336014,6.4243,155.55,155.53,13.85164254]
[1748993336217,6.4243,155.55,155.54,5.99837386]
[1748993340231,6.4243,155.55,155.54,6.00351501]
[1748993341526,3.85208989,155.56,155.53,6.00351501]
[1748993341527,6.4248,155.54,155.53,6.00351501]
[1748993342821,6.4248,155.54,155.52,3.85271518]
[1748993342822,6.4248,155.54,155.52,18.28300186]
[1748993343026,6.4248,155.54,155.53,3.80596349]
[1748993343321,0.0461264,155.56,155.54,6.4246]
[1748993343529,0.0461264,155.56,155.55,9.8119115]
[1748993344335,0.0461264,155.56,155.55,10.23026349]
[1748993344534,0.0461264,155.56,155.55,16.23590899]
[1748993344722,0.0461264,155.56,155.55,10.23026349]
[1748993345330,0.0461264,155.56,155.55,6.4243]
[1748993357739,8.07259042,155.66,155.55,5.94549042]
[1748993357946,8.07259042,155.66,155.6,6.00451255]
[1748993358148,6.4209,155.64,155.61,6.4215]
[1748993358447,6.4209,155.64,155.6,6.00451255]
[1748993358748,0.0478428,155.64,155.6,6.04519965]
[1748993359039,0.0478428,155.64,155.62,6.001844]
[1748993359439,0.0478428,155.64,155.63,12.422844]
[1748993361042,0.0478428,155.64,155.63,18.36833442]
[1748993361237,225.68798188,155.68,155.65,6.4198]
[1748993361447,38.28549042,155.7,155.65,6.4198]
[1748993361645,6.4192,155.68,155.65,6.4198]
[1748993362041,10.38499042,155.72,155.66,6.4198]
[1748993362241,0.04271804,155.71,155.67,0.04057742]
[1748993363140,6.419,155.68,155.67,0.04057742]
[1748993364143,0.04271804,155.71,155.67,0.04057742]
[1748993364651,6.4188,155.69,155.67,0.04057742]
[1748993365044,0.04271804,155.71,155.67,0.04057742]
[1748993365546,6.419,155.68,155.67,0.04057742]
[1748993366544,0.04271804,155.71,155.67,12.40516784]
[1748993367244,6.46061804,155.71,155.68,6.4188]
[1748993367448,0.04271804,155.71,155.67,5.98606784]
[1748993367849,6.4185,155.7,155.67,12.40536784]
[1748993368049,6.4185,155.7,155.67,5.98606784]
[1748993368253,0.04271804,155.71,155.67,5.98606784]
[1748993369154,6.4186,155.69,155.67,5.98606784]
[1748993370255,0.04271804,155.71,155.67,5.98606784]
[1748993370843,6.4184,155.7,155.67,12.40526784]
[1748993371243,6.4184,155.7,155.67,5.98606784]
[1748993372348,0.04271804,155.71,155.67,5.98606784]
[1748993372748,6.419,155.68,155.67,5.98606784]
[1748993379347,6.419,155.68,155.67,0.04057742]
[1748993393172,10.22021754,155.68,155.67,0.04057742]
[1748993395372,12.35924303,155.68,155.67,0.04057742]
[1748993401076,6.421,155.63,155.62,32.34]
[1748993401279,5.94024303,155.66,155.61,2.2244]
[1748993401580,5.94024303,155.66,155.6,5.98669271]
[1748993401776,6.4222,155.61,155.6,5.98669271]
[1748993403373,6.4222,155.61,155.59,0.04628817]
[1748993403374,6.4223,155.6,155.59,0.04628817]
[1748993403683,5.94024303,155.6,155.55,5.98669271]
[1748993403875,6.4238,155.57,155.54,8.13869271]
[1748993404076,6.4238,155.57,155.55,5.98669271]
[1748993404385,6.4238,155.57,155.54,2.152]
[1748993404386,6.4238,155.57,155.54,8.13869271]
[1748993404578,0.04218985,155.57,155.54,14.60788714]
[1748993404778,0.04218985,155.57,155.54,14.61540697]
[1748993404973,0.04218985,155.57,155.55,6.4243]
[1748993409289,0.04218985,155.57,155.56,12.36414303]
[1748993409591,32.3,155.63,155.56,5.94024303]
[1748993409783,6.4219,155.61,155.58,6.4228]
[1748993410092,32.3,155.63,155.58,5.94024303]
[1748993410489,6.4222,155.61,155.59,0.0440509]
[1748993410792,0.04479287,155.62,155.59,0.0440509]
[1748993411291,6.4223,155.6,155.59,0.0440509]
[1748993412989,6.422,155.61,155.59,6.4666509]
[1748993413196,0.04479287,155.62,155.59,0.0440509]
[1748993413490,0.04479287,155.62,155.61,6.4219]
[1748993413886,32.3,155.67,155.6,7.99674303]
[1748993414088,6.4201,155.66,155.63,6.421]
[1748993414786,6.4201,155.66,155.63,6.4680719]
[1748993414989,6.4203,155.65,155.63,6.4680719]
[1748993415185,0.04824617,155.66,155.63,6.4680719]
[1748993415893,6.4204,155.65,155.63,0.0470719]
[1748993418297,6.46804617,155.66,155.63,6.4679719]
[1748993418694,0.04824617,155.66,155.63,0.0470719]
[1748993418995,6.4203,155.65,155.63,0.0470719]
[1748993419696,6.46824617,155.66,155.63,6.4678719]
[1748993422894,6.4202,155.65,155.63,6.4678719]
[1748993424398,6.46824617,155.66,155.63,6.4678719]
[1748993424590,6.46824617,155.66,155.64,6.4206]
[1748993424992,6.4203,155.65,155.63,6.4679719]
[1748993425394,6.46824617,155.66,155.63,6.4679719]
[1748993425998,6.4203,155.65,155.63,6.4679719]
[1748993427299,6.4203,155.65,155.63,0.0470719]
[1748993428196,6.4206,155.64,155.63,0.0470719]
[1748993433406,0.04824617,155.66,155.63,0.0470719]
[1748993433606,0.04824617,155.66,155.63,5.98731493]
[1748993434005,0.04824617,155.66,155.63,11.97454702]
[1748993434504,6.46824617,155.66,155.64,6.4204]
[1748993434899,0.04824617,155.66,155.64,5.98677724]
[1748993435206,0.04824617,155.66,155.65,6.4202]
[1748993435599,0.04824617,155.66,155.65,12.40697724]
[1748993436195,0.04824617,155.66,155.65,18.34722027]
[1748993437001,0.04824617,155.66,155.65,12.40697724]
[1748993438515,0.04824617,155.66,155.65,6.4202]
[1748993440905,0.04824617,155.66,155.64,12.40320673]
[1748993441399,0.04824617,155.66,155.65,6.4202]
[1748993442613,0.04824617,155.66,155.65,18.34324976]
[1748993442917,0.04824617,155.66,155.65,18.34063194]
[1748993443105,38.6985,155.7,155.67,6.4193]
[1748993443310,6.4185,155.7,155.67,6.4193]
[1748993444112,0.04469643,155.7,155.69,5.94024303]
[1748993444617,0.04469643,155.7,155.69,12.35854303]
[1748993445006,2.0875,155.77,155.69,5.94024303]
[1748993445205,6.4161,155.75,155.72,6.417]
[1748993446108,6.46283285,155.75,155.72,6.46252888]
[1748993447618,0.04673285,155.75,155.73,6.4166]
[1748993447810,0.04673285,155.75,155.72,0.04552888]
[1748993448205,0.04673285,155.75,155.73,6.4166]
[1748993448721,0.04673285,155.75,155.72,0.04552888]
[1748993449419,0.04673285,155.75,155.74,6.4165]
[1748993450423,6.46283285,155.75,155.73,6.4167]
[1748993450720,6.46283285,155.75,155.72,0.04552888]
[1748993451020,0.04673285,155.75,155.72,0.04552888]
[1748993451415,0.04673285,155.75,155.74,12.35674303]
[1748993452325,2.0736,155.81,155.74,5.94024303]
[1748993452513,6.4143,155.8,155.77,5.94024303]
[1748993452817,4.58625265,155.79,155.77,12.35514303]
[1748993453025,6.4143,155.8,155.77,12.35514303]
[1748993453321,4.58636079,155.79,155.77,12.39957314]
[1748993453523,0.04916251,155.8,155.78,6.4149]
[1748993453718,0.04916251,155.8,155.77,5.98467314]
[1748993454027,0.04916251,155.8,155.77,12.39977314]
[1748993454323,6.46346251,155.8,155.77,12.39977314]
[1748993454627,4.58585698,155.79,155.77,12.39977314]
[1748993454815,6.46346251,155.8,155.77,12.39977314]
[1748993455124,4.58577182,155.79,155.77,0.04443011]
[1748993455426,6.4147,155.79,155.77,0.04443011]
[1748993456317,4.60463158,155.78,155.77,6.45963011]
[1748993456519,6.46336251,155.8,155.77,6.45963011]
[1748993456717,4.60453378,155.79,155.77,6.45963011]
[1748993456931,6.46336251,155.8,155.77,0.04443011]
[1748993457132,11.01904373,155.79,155.77,0.04443011]
[1748993457325,6.4145,155.79,155.77,0.04443011]
[1748993457827,4.60432827,155.78,155.77,0.04443011]
[1748993458027,6.4145,155.79,155.77,0.04443011]
[1748993458418,4.61466553,155.78,155.77,0.04443011]
[1748993458621,0.04916251,155.8,155.77,0.04443011]
[1748993458818,6.4147,155.79,155.77,0.04443011]
[1748993459128,4.61459338,155.78,155.77,0.04443011]
[1748993459428,4.6145856,155.78,155.77,0.04443011]
[1748993459817,4.61462322,155.78,155.77,0.04443011]
[1748993460425,11.02929307,155.78,155.77,0.04443011]
[1748993460621,6.4149,155.78,155.77,0.04443011]
[1748993460827,11.02812658,155.78,155.77,0.04443011]
[1748993461127,5.92299788,155.88,155.77,0.04443011]
[1748993461331,7.04017284,155.88,155.8,5.92299788]
[1748993461537,6.4126,155.84,155.78,32.22]
[1748993461731,6.4126,155.84,155.79,5.92299788]
[1748993462033,0.04346518,155.83,155.81,5.92299788]
[1748993462827,6.45626518,155.83,155.81,5.92299788]
[1748993464030,0.04346518,155.83,155.81,12.33659788]
[1748993464521,6.45626518,155.83,155.81,5.92299788]
[1748993465833,6.45626518,155.83,155.81,12.33659788]
[1748993466133,0.04346518,155.83,155.81,5.92299788]
[1748993466324,0.04346518,155.83,155.8,0.04535438]
[1748993466730,6.4135,155.82,155.8,0.04535438]
[1748993468134,6.45626518,155.83,155.8,6.45935438]
[1748993468936,6.45626518,155.83,155.8,0.04535438]
[1748993469837,6.4133,155.82,155.8,0.04535438]
[1748993470841,6.4136,155.81,155.8,0.04535438]
[1748993471637,6.4134,155.82,155.8,0.04535438]
[1748993471835,0.04346518,155.83,155.8,0.04535438]
[1748993472441,6.4136,155.81,155.8,0.04535438]
[1748993474837,6.4136,155.81,155.8,5.96835226]
[1748993479240,6.4136,155.81,155.8,0.04535438]
[1748993497068,6.4136,155.81,155.77,5.99766869]
[1748993497069,32.22,155.81,155.74,5.99766869]
[1748993497271,5.92299788,155.79,155.73,5.99766869]
[1748993497770,5.92299788,155.79,155.72,32.22]
[1748993498170,0.04329669,155.77,155.74,0.04240623]
[1748993498870,6.4161,155.75,155.74,0.04240623]
[1748993501370,6.4181,155.7,155.69,38.14299788]
[1748993506181,6.4181,155.7,155.69,32.22]
[1748993506683,6.4181,155.7,155.69,38.14299788]
[1748993511883,6.4181,155.7,155.69,5.92299788]
[1748993512085,6.4186,155.69,155.68,0.0482297]
[1748993512485,12.34159788,155.69,155.68,2.97e-05]
[1748993512684,44.56159788,155.69,155.68,2.97e-05]
[1748993515079,38.6386,155.69,155.68,2.97e-05]
[1748993515684,6.4186,155.69,155.68,2.97e-05]
[1748993516588,0.04564577,155.71,155.68,2.97e-05]
[1748993517285,6.46354577,155.71,155.68,6.4188297]
[1748993518179,6.4181,155.7,155.68,2.97e-05]
[1748993519979,0.04564577,155.71,155.68,2.97e-05]
[1748993520892,6.4184,155.7,155.68,2.97e-05]
[1748993521091,0.04564577,155.71,155.68,2.97e-05]
[1748993521291,6.46354577,155.71,155.68,6.4187297]
[1748993521991,6.4182,155.7,155.68,2.97e-05]
[1748993523187,6.4182,155.7,155.68,6.4189297]
[1748993525294,6.4182,155.7,155.68,2.97e-05]
[1748993527494,6.4182,155.7,155.68,6.4189297]
[1748993530091,6.46354577,155.71,155.68,6.4189297]
[1748993530291,0.04564577,155.71,155.7,6.4181]
[1748993535391,2.2257,155.77,155.72,5.92299788]
[1748993535597,6.4161,155.76,155.72,5.92299788]
[1748993536002,2.2257,155.77,155.73,6.4166]
[1748993536297,6.4161,155.75,155.73,6.459742]
[1748993537500,6.4158,155.76,155.74,6.4165]
[1748993538299,6.4628836,155.77,155.75,6.4161]
[1748993539999,6.4628836,155.77,155.74,6.4164]
[1748993540000,6.4157,155.76,155.74,6.4164]
[1748993540204,6.4157,155.76,155.73,0.043142]
[1748993540205,5.97048148,155.77,155.73,0.043142]
[1748993540607,6.4165,155.74,155.73,0.043142]
[1748993541107,6.4163,155.75,155.73,0.043142]
[1748993541804,6.4165,155.74,155.73,0.043142]
[1748993544400,6.4163,155.75,155.73,0.043142]
[1748993544797,0.0474836,155.77,155.73,5.96613988]
[1748993545198,0.0474836,155.77,155.74,6.4161]
[1748993545501,0.0474836,155.77,155.73,0.043142]
[1748993545701,6.4165,155.74,155.73,0.043142]
[1748993549000,0.0474836,155.77,155.73,5.96613988]
[1748993549903,6.4630836,155.77,155.74,6.4161]
[1748993550304,0.0474836,155.77,155.74,6.4161]
[1748993551205,0.0474836,155.77,155.73,18.36434769]
[1748993551506,0.0474836,155.77,155.73,12.38283988]
[1748993551707,6.416,155.76,155.73,12.38283988]
[1748993552206,6.416,155.76,155.74,6.4164]
[1748993552508,6.416,155.76,155.73,5.96613988]
[1748993553303,0.0474836,155.77,155.73,5.96613988]
[1748993553504,0.0474836,155.77,155.75,5.92299788]
[1748993553809,0.0474836,155.77,155.76,6.4157]
[1748993554000,0.0474836,155.77,155.75,5.92299788]
[1748993554402,0.0474836,155.77,155.76,6.4157]
[1748993554809,0.0474836,155.77,155.75,5.92299788]
[1748993554810,0.0474836,155.77,155.74,5.97811647]
[1748993555003,6.4159,155.76,155.74,11.90111435]
[1748993555210,0.0474836,155.77,155.74,11.90111435]
[1748993555405,0.0474836,155.77,155.74,5.92299788]
[1748993555608,6.416,155.76,155.74,5.92299788]
[1748993555807,5.97048148,155.77,155.73,6.02125847]
[1748993556000,6.4163,155.75,155.73,6.02125847]
[1748993556409,0.0474836,155.77,155.73,6.02125847]
[1748993556611,6.4165,155.74,155.73,0.043142]
[1748993556911,5.92299788,155.75,155.71,7.97082196]
[1748993557209,5.92299788,155.72,155.64,177.6893118]
[1748993557504,5.92299788,155.7,155.64,15.94164392]
[1748993557712,6.4186,155.69,155.66,12.40013206]
[1748993558008,6.46415597,155.69,155.66,12.44326721]
[1748993558609,6.46415597,155.69,155.66,6.46273515]
[1748993559210,6.46415597,155.69,155.66,12.44326721]
[1748993559713,6.46415597,155.69,155.66,6.46273515]
[1748993560211,6.46415597,155.69,155.66,12.44851667]
[1748993565113,6.46415597,155.69,155.67,6.4193]
[1748993565509,6.46415597,155.69,155.66,6.02891667]
[1748993565710,6.419,155.68,155.66,12.44851667]
[1748993566217,0.04555597,155.69,155.67,6.4193]
[1748993566509,0.04555597,155.69,155.67,5.92299788]
[1748993566719,0.04555597,155.69,155.67,11.9087794]
[1748993567119,0.04555597,155.69,155.68,6.419]
[1748993567308,4.37,155.74,155.67,44.1087794]
[1748993567508,4.37,155.74,155.7,5.92299788]
[1748993567712,6.4171,155.73,155.7,5.92299788]
[1748993567912,4.37,155.74,155.7,5.92299788]
[1748993567913,2.1879,155.74,155.7,5.92299788]
[1748993568424,6.417,155.73,155.7,12.38383386]
[1748993570923,6.417,155.73,155.71,6.4177]
[1748993571117,8.64633911,155.74,155.7,5.96583386]
[1748993571414,6.45843911,155.74,155.7,5.96583386]
[1748993571623,6.45843911,155.74,155.71,6.4175]
[1748993572423,6.4169,155.73,155.71,6.4175]
[1748993573427,6.45843911,155.74,155.71,6.4175]
[1748993574423,6.45843911,155.74,155.71,12.34049788]
[1748993574620,6.417,155.73,155.71,12.34049788]
[1748993575719,6.45843911,155.74,155.72,6.4172]
[1748993575921,0.04173911,155.74,155.71,5.92299788]
[1748993576125,0.04173911,155.74,155.7,6.03107292]
[1748993576424,38.16473699,155.74,155.7,0.04283598]
[1748993576819,6.4177,155.71,155.7,0.04283598]
[1748993577818,6.4197,155.67,155.64,11.9125177]
[1748993578018,5.92299788,155.7,155.64,12.40981982]
[1748993578224,5.92299788,155.7,155.64,5.98951982]
[1748993578825,0.04225828,155.69,155.65,6.46139064]
[1748993579726,6.419,155.68,155.65,6.46139064]
[1748993580027,0.04225828,155.69,155.65,0.04129064]
[1748993580720,6.4196,155.67,155.65,0.04129064]
[1748993581119,6.4198,155.66,155.65,0.04129064]
[1748993582431,0.04225828,155.69,155.65,0.04129064]
[1748993582631,0.04225828,155.69,155.66,6.4196]
[1748993582832,6.46115828,155.69,155.66,6.4196]
[1748993583129,0.04225828,155.69,155.65,5.96428852]
[1748993583730,0.04225828,155.69,155.67,6.4191]
[1748993584843,6.46085828,155.69,155.66,6.4196]
[1748993586437,6.46085828,155.69,155.67,6.4192]
[1748993588338,0.04225828,155.69,155.68,6.419]